fUSD/lending_fUSD_20250212
["ID","MTS","AMOUNT","RATE_DAILY","PERIOD"]
[352876964,1739383849539,-417.63991515,0.00018528,2]
[352876965,1739383849549,-500.0,0.00018528,2]
[352876966,1739383849560,-500.0,0.00018528,2]
[352876967,1739383849571,-195.53574369,0.00018528,2]
[352876968,1739383849581,-500.0,0.00018528,2]
[352876969,1739383849591,-603.71,0.00018528,2]
[352876970,1739383849601,-458.22111662,0.00018528,2]
[352876971,1739383849611,-150.0,0.0001853,2]
[352876972,1739383849621,-994.0,0.00018531,2]
[352876973,1739383849635,-300.0,0.0001854,2]
[352876974,1739383849646,-150.0,0.00018547,2]
[352876975,1739383849656,-150.0,0.00018548,2]
[352876976,1739383849666,-150.0,0.00018551,2]
[352876977,1739383849676,-150.0,0.00018556,2]
[352876978,1739383849686,-150.0,0.00018558,2]
[352876979,1739383849697,-150.0,0.00018566,2]
[352876980,1739383849709,-150.0,0.00018573,2]
[352876981,1739383849719,-150.0,0.00018575,2]
[352876982,1739383849729,-1000.0,0.00018578,2]
[352876983,1739383849738,-150.0,0.00018579,2]
[352876985,1739383849749,-1000.0,0.0001858,2]
[352876986,1739383849758,-150.0,0.00018581,2]
[352876987,1739383849768,-238.38625037,0.00018584,2]
[352876988,1739383849778,-150.0,0.00018594,2]
[352876989,1739383849789,-154.55,0.000186,2]
[352876990,1739383849798,-154.55,0.000186,2]
[352876991,1739383849809,-900.0,0.000186,6]
[352876992,1739383849820,-1006.0,0.00018606,2]
[352876993,1739383849830,-1000.0,0.00018609,2]
[352876994,1739383849840,-150.0,0.00018614,2]
[352876995,1739383849849,-150.0,0.00018615,2]
[352876996,1739383849859,-150.0,0.00018615,2]
[352876997,1739383849869,-150.0,0.00018617,2]
[352876998,1739383849879,-1000.0,0.00018621,2]
[352876999,1739383849890,-150.0,0.00018622,2]
[352877000,1739383849900,-500.0,0.00018629,2]
[352877001,1739383849910,-500.0,0.00018629,2]
[352877002,1739383849920,-409.87844337,0.00018629,2]
[352877003,1739383849930,-500.0,0.00018629,2]
[352877004,1739383849940,-541.31,0.00018629,2]
[352877005,1739383849950,-524.01,0.00018629,2]
[352877006,1739383849959,-500.0,0.00018629,2]
[352877007,1739383849971,-150.0,0.00018633,2]
[352877008,1739383849980,-150.0,0.00018638,2]
[352877009,1739383849993,-1000.0,0.00018639,2]
[352877010,1739383850002,-150.0,0.00018639,2]
[352877011,1739383850011,-1000.0,0.00018644,2]
[352877012,1739383850021,-150.0,0.00018646,2]
[352877013,1739383850030,-500.0,0.00018649,2]
[352877014,1739383850040,-150.0,0.0001865,2]
[352877015,1739383850049,-1000.0,0.00018653,2]
[352877016,1739383850058,-150.0,0.00018657,2]
[352877017,1739383850069,-150.0,0.00018658,2]
[352877018,1739383850078,-208.8896623,0.00018658,2]
[352877019,1739383850203,-791.1103377,0.00018658,2]
[352877020,1739383850212,-300.0,0.00018659,2]
[352877021,1739383850222,-150.0,0.00018659,2]
[352877022,1739383850232,-500.0,0.00018664,2]
[352877023,1739383850241,-50.34630397,0.00018664,2]
[352877024,1739383850253,-195.45258512,0.00018664,2]
[352877025,1739383850262,-500.0,0.00018664,2]
[352877026,1739383850272,-500.0,0.00018664,2]
[352877027,1739383850282,-160.23465399,0.00018664,2]
[352877028,1739383850296,-339.76534601,0.00018664,2]
[352877029,1739383850307,-500.0,0.00018664,2]
[352877030,1739383850318,-1355.77,0.00018664,2]
[352877031,1739383850328,-265.27317306,0.00018665,2]
[352877032,1739383850344,-461.11682694,0.00018665,2]
[352877033,1739383850354,-500.0,0.00018665,2]
[352877034,1739383850364,-500.0,0.00018665,2]
[352877035,1739383850375,-276.2379438,0.00018665,2]
[352877036,1739383850384,-500.0,0.00018665,2]
[352877037,1739383850393,-500.0,0.00018665,2]
[352877038,1739383850402,-603.71,0.00018665,2]
[352877039,1739383850411,-150.0,0.0001867,2]
[352877040,1739383850421,-150.0,0.00018674,2]
[352877041,1739383850430,-150.0,0.0001868,2]
[352877042,1739383850440,-150.0,0.00018681,2]
[352877043,1739383850450,-150.0,0.00018686,2]
[352877044,1739383850461,-211.61374963,0.00018691,2]
[352877045,1739383850471,-2096.0,0.00018696,2]
[352877046,1739383850482,-168.48478968,0.000187,2]
[352877047,1739383850492,-1400.0,0.000187,6]
[352877048,1739383850502,-150.0,0.0001871,2]
[352877049,1739383850511,-150.0,0.0001871,2]
[352877050,1739383850521,-150.0,0.00018711,2]
[352877051,1739383850531,-1092.18771391,0.00018713,2]
[352877052,1739383850540,-150.0,0.00018714,2]
[352877053,1739383850550,-150.0,0.00018717,2]
[352877054,1739383850559,-300.0,0.0001872,2]
[352877055,1739383850570,-260.21385484,0.00018721,2]
[352877056,1739383850580,-150.0,0.00018726,2]
[352877057,1739383850590,-150.0,0.00018731,2]
[352877058,1739383850599,-150.0,0.00018736,2]
[352877059,1739383850609,-1000.0,0.00018743,2]
[352877060,1739383850620,-150.0,0.00018745,2]
[352877061,1739383850633,-2000.0,0.00018751,2]
[352877062,1739383850643,-1000.0,0.00018752,2]
[352877063,1739383850652,-150.0,0.00018756,2]
[352877064,1739383850662,-1000.0,0.00018759,2]
[352877065,1739383850673,-150.0,0.00018759,2]
[352877066,1739383850683,-150.0,0.00018764,2]
[352877067,1739383850693,-291.49,0.00018766,2]
[352877068,1739383850706,-629.07280117,0.00018766,2]
[352877069,1739383850716,-500.0,0.00018766,2]
[352877070,1739383850726,-541.31,0.00018766,2]
[352877071,1739383850736,-524.01,0.00018766,2]
[352877072,1739383850747,-435.74240887,0.00018766,2]
[352877073,1739383850757,-150.0,0.00018769,2]
[352877074,1739383850767,-150.0,0.00018775,2]
[352877075,1739383850778,-150.0,0.00018777,2]
[352877076,1739383850787,-329.6851953,0.00018789,2]
[352877077,1739383850798,-54784.16324853,0.00018789,21]
[352877078,1739383850816,-398.49253956,0.00018789,21]
[352877079,1739383850901,-349.19697522,0.00016848,2]
[352877080,1739383850911,-500.0,0.00016883,2]
[352877081,1739383850920,-500.0,0.0001702,2]
[352877082,1739383850931,-500.0,0.00017157,2]
[352877083,1739383850941,-500.0,0.00017294,2]
[352877084,1739383850950,-500.0,0.00017431,2]
[352877085,1739383850959,-15.23156571,0.00017568,2]
[352877086,1739383850971,-484.76843429,0.00017568,2]
[352877087,1739383850981,-500.0,0.00017705,2]
[352877088,1739383851034,-434.09916413,0.00017842,2]
[352877089,1739383851045,-25214.34414427,0.00018789,21]
[352877090,1739383851120,-5092.77776183,0.00018789,21]
[352877091,1739383851132,-12885.00648281,0.00018789,21]
[352877092,1739383851143,-3476.8920281,0.00018789,2]
[352877093,1739383851152,-2198.0008744,0.00018789,2]
[352877094,1739383851162,-4171.7710699,0.00018789,2]
[352877095,1739383851171,-406.30848458,0.0001879,2]
[352877096,1739383851182,-237.14691542,0.00018799,2]
[352877097,1739383851195,-500.0,0.00018799,2]
[352877098,1739383851204,-501.00636028,0.00018799,2]
[352877099,1739383851214,-500.0,0.00018799,2]
[352877100,1739383851224,-507.13859127,0.00018799,2]
[352877101,1739383851233,-1228.28,0.00018799,2]
[352877102,1739383851242,-300.0,0.00018799,2]
[352877103,1739383851252,-2389.89131,0.000188,2]
[352877104,1739383851261,-243961.38569472,0.000188,2]
[352877105,1739383851273,-508.52999999,0.000188,2]
[352877106,1739383851284,-42173.12597123,0.000188,2]
[352877107,1739383851295,-473967.79863801,0.000188,2]
[352877108,1739383851311,-9500.0,0.000188,2]
[352877109,1739383851322,-1022.1,0.000188,2]
[352877110,1739383851354,-17536.78146953,0.000188,2]
[352877111,1739383851365,-266790.30768,0.000188,2]
[352877112,1739383851375,-4341.50751107,0.000188,2]
[352877113,1739383871684,905.4395,8.851e-05,2]
[352877114,1739383931891,150.0,0.000135,2]
[352877115,1739384117656,150.0,0.000135,2]
[352877116,1739384127789,282.87,0.00010137,2]
[352877118,1739384302597,150.0,0.000135,2]
[352877119,1739384352143,-1000.0,0.00015,2]
[352877120,1739384352169,-222.13774929,0.00016338,2]
[352877121,1739384352193,-190.183309,0.00016438,2]
[352877122,1739384352217,-230.274094,0.00016438,2]
[352877123,1739384352242,-157.072737,0.00016438,2]
[352877124,1739384352265,-156.273019,0.00016438,2]
[352877125,1739384352300,-495.4,0.00016438,2]
[352877126,1739384352323,-500.0,0.000165,2]
[352877127,1739384352346,-282.87,0.00016813,2]
[352877128,1739384352370,-540.0,0.00016847,2]
[352877129,1739384352393,-300.0,0.00016847,2]
[352877130,1739384352415,-500.0,0.00016848,2]
[352877131,1739384352438,-500.0,0.00016848,2]
[352877132,1739384352460,-500.0,0.00016848,2]
[352877133,1739384352483,-500.0,0.00016848,2]
[352877134,1739384352506,-500.0,0.00016848,2]
[352877135,1739384352527,-500.0,0.00016848,2]
[352877136,1739384352549,-500.0,0.00016848,2]
[352877137,1739384352572,-500.0,0.00016848,2]
[352877138,1739384352594,-500.0,0.00016848,2]
[352877139,1739384352616,-343.46940701,0.00016848,2]
[352877140,1739384352639,-500.0,0.00016848,2]
[352877141,1739384352661,-500.0,0.00016848,2]
[352877142,1739384352684,-500.0,0.00016848,2]
[352877143,1739384352707,-500.0,0.00016848,2]
[352877144,1739384352730,-500.0,0.00016848,2]
[352877145,1739384352756,-500.0,0.00016848,2]
[352877146,1739384352778,-500.0,0.00016848,2]
[352877147,1739384352800,-500.0,0.00016848,2]
[352877148,1739384352826,-500.0,0.00016848,2]
[352877149,1739384352850,-500.0,0.00016848,2]
[352877150,1739384352872,-500.0,0.00016848,2]
[352877151,1739384352896,-500.0,0.00016848,2]
[352877152,1739384352918,-500.0,0.00016883,2]
[352877153,1739384352940,-500.0,0.00016883,2]
[352877154,1739384352961,-500.0,0.00016883,2]
[352877155,1739384352984,-500.0,0.00016883,2]
[352877156,1739384353007,-500.0,0.00016883,2]
[352877157,1739384353030,-500.0,0.00016883,2]
[352877158,1739384353053,-500.0,0.00016883,2]
[352877159,1739384353076,-500.0,0.00016883,2]
[352877160,1739384353099,-502.55641872,0.00016884,2]
[352877161,1739384353123,-700.0,0.00016901,2]
[352877162,1739384353144,-500.0,0.00016901,2]
[352877163,1739384353166,-170.826,0.00016901,2]
[352877164,1739384353189,-1249.754,0.00016901,2]
[352877165,1739384353213,-1317.22,0.00016922,2]
[352877166,1739384353238,-2943.51,0.00016922,2]
[352877167,1739384353261,-17572.81,0.00016922,2]
[352877168,1739384353283,-6125.64326598,0.00016922,2]
[352877170,1739384406315,150.0,0.00013174,2]
[352877171,1739384465544,1699.922,8.973e-05,2]
[352877172,1739384489048,150.0,0.000138,2]
[352877173,1739384515442,1000.0,0.00015,2]
[352877174,1739384515714,1143.30852376,0.00015,2]
[352877175,1739384674217,793.13,0.00014319,2]
[352877176,1739384675499,150.0,0.000148,2]
[352877177,1739384708771,46763.56147624,0.0001,2]
[352877178,1739384708796,29114.59574349,0.0001,2]
[352877181,1739384823894,550.0,0.00013,2]
[352877184,1739384882011,6796.03613373,0.0001,2]
[352877227,1739385018937,-43381.73937616,0.0001,2]
[352877228,1739385018960,-459.92731715,0.00010136,2]
[352877244,1739385031811,-150.0,0.000148,2]
[352877246,1739385031821,-600.0,0.00015,2]
[352877248,1739385031831,-165.54,0.00015631,2]
[352877250,1739385031841,-1074.75909972,0.00015666,2]
[352877251,1739385031854,-1984.33090028,0.00015666,2]
[352877252,1739385031870,-300.0,0.00015803,2]
[352877253,1739385031880,-499.35,0.00015804,2]
[352877254,1739385031892,-501.32,0.00015804,2]
[352877255,1739385031902,-506.54,0.00015804,2]
[352877256,1739385031912,-508.15,0.00015804,2]
[352877257,1739385031922,-499.73,0.00015804,2]
[352877258,1739385031932,-490.39,0.00015804,2]
[352877259,1739385031942,-509.5,0.00015804,2]
[352877260,1739385031952,-493.14,0.00015804,2]
[352877261,1739385031962,-507.13,0.00015804,2]
[352877262,1739385031974,-494.14,0.00015804,2]
[352877263,1739385031984,-501.18,0.00015804,2]
[352877264,1739385031994,-505.69,0.00015805,2]
[352877265,1739385032005,-505.22,0.00015805,2]
[352877266,1739385032015,-506.36,0.00015805,2]
[352877267,1739385032025,-505.84,0.00015805,2]
[352877268,1739385032035,-152.73007028,0.00015805,2]
[352877269,1739385032052,-341.07992972,0.00015805,2]
[352877270,1739385032063,-507.9,0.00015805,2]
[352877278,1739385032298,-491.69,0.00015805,2]
[352877281,1739385032315,-509.02,0.00015805,2]
[352877284,1739385032324,-505.07,0.00015805,2]
[352877287,1739385032334,-500.1,0.00015805,2]
[352877290,1739385032343,-205.09866992,0.00015805,2]
[352877292,1739385032356,-299.80133008,0.00015805,2]
[352877294,1739385032367,-502.26,0.00015805,2]
[352877297,1739385032378,-503.24,0.00015805,2]
[352877298,1739385032387,-504.09,0.00015805,2]
[352877299,1739385032397,-506.96,0.00015805,2]
[352877300,1739385032406,-403.64866692,0.00015805,2]
[352877301,1739385032418,-96.27133308,0.00015805,2]
[352877302,1739385032428,-700.0,0.00015805,2]
[352877303,1739385032437,-704.82,0.00016107,2]
[352877304,1739385032447,-484.86428402,0.00016112,2]
[352877305,1739385032459,-219.95571598,0.00016112,2]
[352877306,1739385032468,-518.49250821,0.00016116,2]
[352877307,1739385032480,-186.32749179,0.00016116,2]
[352877308,1739385032490,-9999.99,0.00016116,2]
[352877309,1739385032499,-6890.56,0.00016116,2]
[352877310,1739385032508,-999.99,0.00016116,2]
[352877311,1739385032517,-909.49,0.00016116,2]
[352877312,1739385032526,-704.82,0.0001612,2]
[352877314,1739385032536,-704.82,0.00016124,2]
[352877315,1739385032545,-704.82,0.00016129,2]
[352877317,1739385032554,-704.82,0.00016133,2]
[352877319,1739385032564,-704.82,0.00016137,2]
[352877321,1739385032574,-704.82,0.00016141,2]
[352877323,1739385032583,-704.82,0.00016146,2]
[352877325,1739385032594,-704.82,0.0001615,2]
[352877327,1739385032603,-704.82,0.00016154,2]
[352877329,1739385032614,-704.82,0.00016158,2]
[352877331,1739385032624,-704.82,0.00016163,2]
[352877333,1739385032633,-704.82,0.00016167,2]
[352877335,1739385032642,-704.82,0.00016171,2]
[352877337,1739385032652,-704.82,0.00016175,2]
[352877339,1739385032662,-704.82,0.0001618,2]
[352877341,1739385032672,-704.82,0.00016184,2]
[352877344,1739385032682,-704.82,0.00016188,2]
[352877346,1739385032692,-159.59084199,0.00016301,2]
[352877348,1739385032702,-793.13,0.00016583,2]
[352877350,1739385032711,-152.0,0.000166,3]
[352877352,1739385032721,-500.0,0.000167,2]
[352877354,1739385032730,-505.91,0.00016766,2]
[352877356,1739385032739,-498.28,0.00016817,2]
[352877358,1739385032748,-406.69797652,0.00016857,2]
[352877360,1739385032758,-505.35,0.00016883,2]
[352877362,1739385032767,-491.82,0.00016883,2]
[352877364,1739385032777,-505.22,0.00016883,2]
[352877366,1739385032786,-506.15,0.00016883,2]
[352877368,1739385032795,-498.75,0.00016892,2]
[352877370,1739385032805,-500.0,0.00016901,2]
[352877372,1739385032814,-600.0,0.00016901,2]
[352877374,1739385032823,-530.85,0.00016984,2]
[352877376,1739385032833,-500.0,0.00016984,2]
[352877378,1739385032842,-500.0,0.00016984,2]
[352877380,1739385032852,-544.0,0.00016984,2]
[352877382,1739385032862,-500.0,0.00016984,2]
[352877384,1739385032872,-500.0,0.00016984,2]
[352877386,1739385032881,-500.0,0.00016984,2]
[352877388,1739385032890,-500.0,0.00016984,2]
[352877390,1739385032900,-500.0,0.00016984,2]
[352877392,1739385032910,-530.98,0.00016984,2]
[352877394,1739385032919,-500.0,0.00016984,2]
[352877396,1739385032929,-500.0,0.00016984,2]
[352877398,1739385032938,-500.0,0.00016984,2]
[352877400,1739385032948,-500.0,0.00016984,2]
[352877402,1739385032957,-500.0,0.00016984,2]
[352877404,1739385032966,-500.0,0.00016984,2]
[352877406,1739385032976,-500.0,0.00016984,2]
[352877408,1739385032987,-500.0,0.00016984,2]
[352877410,1739385032996,-500.0,0.00016984,2]
[352877412,1739385033006,-500.0,0.00016984,2]
[352877414,1739385033016,-575.81,0.00016984,2]
[352877416,1739385033025,-500.0,0.00016984,2]
[352877418,1739385033034,-500.0,0.00016984,2]
[352877420,1739385033046,-500.0,0.00016984,2]
[352877422,1739385033057,-500.0,0.00016984,2]
[352877424,1739385033067,-500.0,0.00016984,2]
[352877426,1739385033077,-500.0,0.00016984,2]
[352877428,1739385033086,-500.0,0.00016984,2]
[352877430,1739385033097,-500.0,0.00016984,2]
[352877432,1739385033107,-650.0,0.00017,2]
[352877434,1739385033118,-300.0,0.00017,2]
[352877436,1739385033128,-264.87,0.00017121,2]
[352877438,1739385033138,-195.51,0.00017121,2]
[352877440,1739385033147,-213.66,0.00017121,2]
[352877442,1739385033156,-607.71,0.00017121,2]
[352877444,1739385033167,-254.71,0.00017121,2]
[352877446,1739385033177,-409.91,0.00017121,2]
[352877448,1739385033186,-177.43,0.00017121,2]
[352877450,1739385033195,-501.49,0.00017157,2]
[352877452,1739385033205,-501.84,0.00017157,2]
[352877455,1739385033215,-700.0,0.00017175,2]
[352877457,1739385033225,-502.78,0.00017218,2]
[352877459,1739385033235,-547.96,0.00017319,30]
[352877460,1739385033244,-599.05,0.0001737,2]
[352877462,1739385033254,-176.61,0.00017381,2]
[352877464,1739385033263,-769.93,0.00017405,2]
[352877466,1739385033273,-500.0,0.00017427,2]
[352877467,1739385033283,-500.0,0.00017435,2]
[352877469,1739385033293,-500.0,0.00017435,2]
[352877471,1739385033302,-500.0,0.00017435,2]
[352877473,1739385033312,-451.28035541,0.00017435,2]
[352877475,1739385033322,-500.0,0.00017436,2]
[352877477,1739385033331,-500.0,0.00017436,2]
[352877479,1739385033341,-500.0,0.00017436,2]
[352877481,1739385033350,-500.0,0.00017436,2]
[352877483,1739385033362,-500.0,0.00017436,2]
[352877485,1739385033371,-500.0,0.00017436,2]
[352877487,1739385033381,-500.0,0.00017436,2]
[352877489,1739385033391,-500.0,0.00017436,2]
[352877491,1739385033401,-500.0,0.00017436,2]
[352877493,1739385033410,-500.0,0.00017436,2]
[352877495,1739385033420,-500.0,0.00017436,2]
[352877497,1739385033430,-500.0,0.00017436,2]
[352877499,1739385033439,-1000.0,0.00017436,2]
[352877501,1739385033449,-250.0,0.00017436,2]
[352877503,1739385033458,-13167.43420429,0.00017436,2]
[352877505,1739385033472,-757.1179525,0.00017436,2]
[352877508,1739385033487,-508.43024786,0.00017436,2]
[352877510,1739385033498,-2476.1701086,0.00017436,2]
[352877512,1739385033510,-2629.81585268,0.00017436,2]
[352877515,1739385033526,-4361.03163407,0.00017436,2]
[352877517,1739385033536,-115908.5675061,0.00017436,2]
[352877519,1739385033545,-150.0,0.00017482,2]
[352877520,1739385033554,-150.0,0.00017482,2]
[352877523,1739385033565,-278.09500878,0.00017482,2]
[352877524,1739385033574,-500.0,0.00017573,2]
[352877526,1739385033583,-500.0,0.00017573,2]
[352877528,1739385033593,-500.0,0.00017573,2]
[352877530,1739385033602,-177.26,0.00017573,2]
[352877532,1739385033615,-500.0,0.0001771,2]
[352877534,1739385033624,-500.0,0.0001771,2]
[352877536,1739385033633,-500.0,0.00017847,2]
[352877538,1739385033643,-500.0,0.00017847,2]
[352877540,1739385033653,-271.36,0.000179,7]
[352877542,1739385033663,-500.0,0.00017984,2]
[352877544,1739385033673,-500.0,0.00017984,2]
[352877547,1739385033683,-600.0,0.00017997,2]
[352877549,1739385033693,-300.0,0.00018,2]
[352877550,1739385033703,-500.0,0.00018121,2]
[352877552,1739385033713,-500.0,0.00018121,2]
[352877554,1739385033723,-300.0,0.0001818,2]
[352877556,1739385033732,-152.0,0.00018212,4]
[352877559,1739385033742,-500.0,0.00018258,2]
[352877560,1739385033752,-500.0,0.00018258,2]
[352877562,1739385033762,-700.0,0.00018271,2]
[352877564,1739385033771,-300.0,0.0001836,2]
[352877566,1739385033781,-300.0,0.0001837,2]
[352877568,1739385033791,-500.0,0.00018395,2]
[352877570,1739385033802,-203.78178218,0.00018395,2]
[352877572,1739385033811,-328.99645128,0.00018418,2]
[352877574,1739385033821,-493.25270665,0.00018418,2]
[352877576,1739385033831,-1570.6318542,0.00018424,2]
[352877578,1739385033841,-415.05784367,0.00018425,2]
[352877580,1739385033851,-150.0,0.00018487,2]
[352877582,1739385033861,-1000.0,0.000185,2]
[352877584,1739385033871,-150.0,0.00018514,2]
[352877586,1739385033882,-613.74,0.00018517,2]
[352877588,1739385033893,-500.0,0.00018517,2]
[352877590,1739385033903,-500.0,0.00018517,2]
[352877592,1739385033913,-500.0,0.00018517,2]
[352877594,1739385033923,-500.0,0.00018517,2]
[352877596,1739385033933,-681.46,0.00018517,2]
[352877598,1739385033943,-500.0,0.00018517,2]
[352877601,1739385033953,-500.0,0.00018517,2]
[352877603,1739385033963,-500.0,0.00018517,2]
[352877605,1739385033972,-500.0,0.00018517,2]
[352877607,1739385033982,-500.0,0.00018517,2]
[352877609,1739385033992,-500.0,0.00018517,2]
[352877611,1739385034001,-500.0,0.00018517,2]
[352877613,1739385034011,-500.0,0.00018517,2]
[352877615,1739385034020,-72607.76682626,0.00018518,2]
[352877616,1739385034030,-174.30090553,0.00018518,2]
[352877618,1739385034040,-413.96656243,0.00018532,2]
[352877620,1739385034053,-1000.0,0.00018534,2]
[352877622,1739385034062,-150.0,0.00018536,2]
[352877624,1739385034071,-1000.0,0.00018537,2]
[352877626,1739385034081,-150.0,0.00018545,2]
[352877628,1739385034090,-1000.0,0.00018557,2]
[352877630,1739385034100,-1000.0,0.0001856,2]
[352877632,1739385034110,-150.0,0.00018568,2]
[352877634,1739385034120,-328.9964512,0.00018583,2]
[352877636,1739385034130,-493.2527066,0.00018583,2]
[352877638,1739385034142,-150.0,0.00018596,2]
[352877640,1739385034151,-154.55,0.000186,2]
[352877642,1739385034161,-400.0,0.000186,6]
[352877644,1739385034172,-150.0,0.00018607,2]
[352877646,1739385034182,-150.0,0.00018608,2]
[352877648,1739385034192,-150.0,0.00018609,2]
[352877650,1739385034201,-1991.5761,0.0001861,2]
[352877652,1739385034211,-1644.67778088,0.0001862,2]
[352877654,1739385034221,-150.0,0.00018643,2]
[352877656,1739385034230,-150.0,0.00018646,2]
[352877658,1739385034240,-2000.0,0.0001865,2]
[352877660,1739385034249,-500.0,0.0001865,2]
[352877662,1739385034259,-500.0,0.0001865,2]
[352877664,1739385034268,-200.0,0.0001865,2]
[352877666,1739385034278,-150.0,0.00018653,2]
[352877668,1739385034287,-500.0,0.00018654,2]
[352877670,1739385034296,-500.0,0.00018654,2]
[352877672,1739385034306,-500.0,0.00018654,2]
[352877674,1739385034315,-500.0,0.00018654,2]
[352877676,1739385034325,-681.46,0.00018654,2]
[352877678,1739385034335,-500.0,0.00018654,2]
[352877680,1739385034345,-500.0,0.00018654,2]
[352877682,1739385034355,-500.0,0.00018654,2]
[352877684,1739385034366,-500.0,0.00018654,2]
[352877687,1739385034376,-500.0,0.00018654,2]
[352877688,1739385034386,-500.0,0.00018654,2]
[352877691,1739385034396,-500.0,0.00018654,2]
[352877692,1739385034405,-150.0,0.00018662,2]
[352877695,1739385034415,-150.0,0.00018685,2]
[352877697,1739385034424,-377.06372102,0.00018699,2]
[352877699,1739385034434,-1900.0,0.000187,2]
[352877701,1739385034444,-900.0,0.000187,6]
[352877703,1739385034453,-150.0,0.00018716,2]
[352877705,1739385034463,-150.0,0.00018723,2]
[352877707,1739385034474,-1000.0,0.00018731,2]
[352877708,1739385034483,-150.0,0.00018731,2]
[352877710,1739385034493,-150.0,0.00018742,2]
[352877712,1739385034502,-150.0,0.00018745,2]
[352877714,1739385034512,-328.9964512,0.00018747,2]
[352877716,1739385034521,-493.2527066,0.00018747,2]
[352877719,1739385034531,-150.0,0.0001875,2]
[352877721,1739385034541,-500.0,0.00018791,2]
[352877723,1739385034551,-500.0,0.00018791,2]
[352877725,1739385034561,-500.0,0.00018791,2]
[352877727,1739385034570,-500.0,0.00018791,2]
[352877729,1739385034580,-681.46,0.00018791,2]
[352877731,1739385034590,-500.0,0.00018791,2]
[352877733,1739385034599,-500.0,0.00018791,2]
[352877735,1739385034610,-500.0,0.00018791,2]
[352877737,1739385034619,-500.0,0.00018791,2]
[352877739,1739385034628,-500.0,0.00018791,2]
[352877741,1739385034638,-310.85077046,0.00018791,2]
[352877743,1739385034648,-500.0,0.00018791,2]
[352877745,1739385034657,-1439.7170891,0.00018795,2]
[352877747,1739385034666,-1702.3321872,0.00018795,2]
[352877749,1739385034676,-500.0,0.00018798,2]
[352877751,1739385034687,-500.0,0.00018798,2]
[352877752,1739385034697,-199.19,0.00018798,2]
[352877755,1739385034707,-388.32870204,0.00018798,2]
[352877757,1739385034717,-500.0,0.00018798,2]
[352877759,1739385034727,-500.0,0.00018798,2]
[352877760,1739385034737,-500.0,0.00018798,2]
[352877761,1739385034747,-500.0,0.00018798,2]
[352877762,1739385034758,-500.0,0.00018798,2]
[352877763,1739385034768,-500.0,0.00018798,2]
[352877764,1739385034777,-154.55,0.00018799,2]
[352877765,1739385034787,-458.52370696,0.00018799,5]
[352877767,1739385034797,-503.12675507,0.00018799,2]
[352877769,1739385034806,-500.0,0.00018799,2]
[352877771,1739385034815,-500.0,0.00018799,2]
[352877773,1739385034824,-500.0,0.00018799,2]
[352877775,1739385034834,-500.0,0.00018799,2]
[352877777,1739385034843,-500.0,0.00018799,2]
[352877779,1739385034852,-500.0,0.00018799,2]
[352877781,1739385034862,-500.0,0.00018799,2]